bitfinex/quotes_ETHUSD_20241024
["timestamp","ask_amount","ask_price","bid_price","bid_amount"]
[1729751916391,3.52975,2557.0,2556.7,1.28156565]
[1729751916698,3.52975,2557.0,2556.8,0.09126937]
[1729751917211,3.52975,2557.0,2556.9,0.0912486]
[1729751917607,3.51991,2556.9,2556.6,2.07336565]
[1729751917917,3.51991,2556.9,2556.7,0.09121542]
[1729751918322,3.52002,2556.8,2556.7,0.09121542]
[1729751918508,3.51991,2556.9,2556.7,0.09121542]
[1729751919918,3.52002,2556.8,2556.7,0.09121542]
[1729751922409,0.8093,2557.0,2556.7,1.37278107]
[1729751922410,3.52983,2557.0,2556.7,1.37278107]
[1729751923694,3.52983,2557.0,2556.7,0.09121542]
[1729751923919,3.52983,2557.0,2556.7,1.37278107]
[1729751927511,0.01,2557.0,2556.7,1.37278107]
[1729751927715,0.01,2557.0,2556.7,1.94909407]
[1729751930210,0.01,2557.0,2556.8,1.28156565]
[1729751930618,0.01,2557.0,2556.7,0.66752842]
[1729751930619,0.01,2557.0,2556.9,0.0910095]
[1729751930850,0.62223859,2557.4,2556.9,2.09076565]
[1729751931018,3.51913,2557.5,2557.2,2.09076565]
[1729751931199,3.51913,2557.5,2557.3,1.28156565]
[1729751931542,3.51913,2557.5,2557.2,2.09076565]
[1729751932102,3.53817757,2557.6,2557.2,2.09076565]
[1729751932103,3.53817757,2557.6,2557.3,0.09076953]
[1729751932298,3.52834757,2557.4,2557.3,0.09076953]
[1729751932523,3.52834757,2557.4,2557.2,0.8092]
[1729751932732,3.52834757,2557.4,2557.3,0.09076953]
[1729751933144,7.04761757,2557.4,2557.2,0.8092]
[1729751933503,3.52834757,2557.4,2557.3,0.09076953]
[1729751933908,3.53834757,2557.4,2557.2,0.8092]
[1729751934113,3.53834757,2557.4,2557.3,0.09076953]
[1729751934652,3.53834757,2557.4,2557.0,2.07206565]
[1729751935156,3.53834757,2557.4,2557.1,0.09067659]
[1729751935509,3.51947,2557.2,2557.1,0.09067659]
[1729751936040,3.51947,2557.2,2556.8,2.07206565]
[1729751936443,3.51947,2557.2,2556.9,0.09070319]
[1729751941414,0.7904,2557.3,2556.9,0.09070319]
[1729751942027,4.30975,2557.3,2556.9,0.09070319]
[1729751946162,4.30975,2557.3,2556.9,1.37226884]
[1729751946324,4.30975,2557.3,2556.9,0.09070319]
[1729751946840,3.51757113,2557.2,2556.9,0.09070319]
[1729751947856,4.30983,2557.3,2556.9,1.37226884]
[1729751948045,4.30983,2557.3,2556.9,1.28156565]
[1729751948241,3.52948,2557.2,2557.0,0.09048069]
[1729751948761,3.52948,2557.2,2557.1,0.09045992]
[1729751948947,3.52948,2557.2,2556.9,1.28156565]
[1729751949152,3.52948,2557.2,2557.1,0.09045992]
[1729751949333,3.52948,2557.2,2557.0,0.09048069]
[1729751949661,3.52948,2557.2,2556.9,0.83216057]
[1729751949863,3.52948,2557.2,2557.1,0.09046739]
[1729751950178,3.52948,2557.2,2556.9,0.83216057]
[1729751950454,3.52948,2557.2,2557.1,0.09046739]
[1729751950626,3.52948,2557.2,2557.0,0.09048816]
[1729751950925,3.52948,2557.2,2557.1,0.09046739]
[1729751951356,3.52948,2557.2,2556.9,0.83216057]
[1729751951561,3.52948,2557.2,2557.1,0.09045245]
[1729751951742,3.52948,2557.2,2556.8,1.28156565]
[1729751952053,3.52948,2557.2,2557.1,0.09045245]
[1729751952259,3.52948,2557.2,2556.8,1.28156565]
[1729751952459,3.52948,2557.2,2557.1,0.09045245]
[1729751952636,3.52948,2557.2,2556.8,1.28156565]
[1729751953154,3.52948,2557.2,2556.9,0.09049399]
[1729751954158,0.01,2557.2,2556.9,0.09049399]
[1729751954364,0.01,2557.2,2556.9,2.2132696]
[1729751955059,0.01,2557.2,2557.0,1.28156565]
[1729751955566,0.01,2557.2,2557.1,0.09047486]
[1729751956063,0.01,2557.2,2556.9,6.46678561]
[1729751956265,0.01,2557.2,2557.1,0.09047486]
[1729751956425,0.01,2557.2,2557.0,0.09049563]
[1729751956763,0.01,2557.6,2557.2,0.8242]
[1729751956997,3.53807757,2557.6,2557.2,2.10576565]
[1729751957260,0.01915757,2557.6,2557.3,0.09038851]
[1729751957757,0.01915757,2557.6,2557.2,5.62523565]
[1729751957758,0.01915757,2557.6,2557.4,0.09036774]
[1729751957936,0.01915757,2557.6,2557.2,2.10576565]
[1729751958140,0.01915757,2557.6,2557.5,0.09034698]
[1729751958348,0.01915757,2557.6,2557.3,0.91448157]
[1729751958668,0.01915757,2557.6,2557.5,0.09026482]
[1729751958861,0.01915757,2557.6,2557.4,0.09028558]
[1729751959049,0.01915757,2557.6,2557.5,0.09026482]
[1729751959460,0.01915757,2557.6,2557.3,2.19604722]
[1729751959677,0.01915757,2557.6,2557.5,0.09026482]
[1729751959830,0.01,2557.6,2557.4,0.09028558]
[1729751960031,0.01,2557.6,2557.5,0.09026482]
[1729751960341,0.01915757,2557.6,2557.3,0.91448157]
[1729751960660,0.01915757,2557.6,2557.5,0.09026482]
[1729751960878,0.01915757,2557.6,2557.4,0.09028558]
[1729751961067,0.01915757,2557.6,2557.5,0.09026482]
[1729751961373,0.01915757,2557.6,2557.3,0.91448157]
[1729751961575,0.01915757,2557.6,2557.5,0.09026482]
[1729751961871,0.01915757,2557.6,2557.3,2.19604722]
[1729751962073,0.01915757,2557.6,2557.5,0.09026482]
[1729751963274,0.01915757,2557.6,2557.5,0.09026482]
[1729751963477,0.01915757,2557.6,2557.4,2.19605123]
[1729751963791,0.01915757,2557.6,2557.5,0.09020507]
[1729751966781,0.01,2557.8,2557.5,4.89083072]
[1729751967005,0.01,2557.8,2557.6,1.28156565]
[1729751967481,0.01,2557.8,2557.7,0.08991708]
[1729751968812,3.52845,2558.0,2557.7,0.08991708]
[1729751969215,3.52845,2558.0,2557.7,0.57897135]
[1729751973010,0.01,2558.0,2557.7,0.57897135]
[1729751975011,0.01,2558.0,2557.8,0.8242]
[1729751975308,0.01,2558.2,2557.9,1.37144122]
[1729751975477,0.01,2558.2,2557.9,2.34364477]
[1729751976082,0.01,2558.2,2557.9,1.06207912]
[1729751978419,0.00915757,2558.1,2557.9,1.06207912]
[1729751978894,0.01,2558.0,2557.9,0.08987557]
[1729751979096,3.52837,2558.0,2557.9,0.08987557]
[1729751979321,4.80993565,2558.0,2557.4,5.61162565]
[1729751979499,3.52837,2558.0,2557.5,0.089645]
[1729751979703,3.52837,2558.0,2557.5,1.01169807]
[1729751979913,1.29156565,2558.0,2557.5,1.01169807]
[1729751980092,0.81725757,2558.1,2557.1,4.33038]
[1729751980093,0.8081,2557.5,2557.1,4.33038]
[1729751980417,4.32718,2557.5,2557.2,0.08934888]
[1729751980623,0.8081,2557.5,2557.2,0.65950033]
[1729751982331,4.33719,2557.5,2557.2,0.65950033]
[1729751982495,4.33719,2557.5,2557.2,0.08934888]
[1729751982690,4.33719,2557.5,2557.0,4.80129565]
[1729751983033,4.33719,2557.5,2557.1,0.08936965]
[1729751983521,0.8181,2557.5,2557.1,0.08936965]
[1729751983889,0.8181,2557.5,2557.1,1.3709353]
[1729751984089,0.8181,2557.5,2557.2,0.48906653]
[1729751984335,0.8181,2557.5,2557.3,0.08932811]
[1729751984623,0.8181,2557.5,2557.2,0.48906653]
[1729751984823,0.8181,2557.5,2557.4,0.08634975]
[1729751984993,0.8181,2557.5,2557.3,0.08637051]
[1729751985187,0.8181,2557.5,2557.4,0.08634975]
[1729751985620,0.8181,2557.5,2557.2,0.48906653]
[1729751985820,0.8181,2557.5,2557.4,0.08634975]
[1729751986028,0.8181,2557.5,2557.3,0.08637051]
[1729751986331,0.8181,2557.5,2557.1,1.28156565]
[1729751986518,0.8181,2557.5,2557.2,0.56652085]
[1729751987233,0.8181,2557.5,2557.2,0.08639128]
[1729751987438,0.8181,2557.5,2557.2,1.36795693]
[1729751987731,0.00915757,2557.5,2557.4,2.09246565]
[1729751987890,0.00915757,2557.5,2557.4,2.17912154]
[1729751988087,0.00915757,2557.5,2557.4,2.7567874]
[1729751989291,0.00915757,2557.5,2557.4,2.17912154]
[1729751989617,0.00915757,2557.5,2557.4,0.89755589]
[1729751990118,0.00915757,2557.5,2557.4,2.17912154]
[1729751990337,0.00915757,2557.5,2557.4,0.89755589]
[1729751994094,3.53795757,2557.7,2557.4,2.17912154]
[1729751994624,3.53795757,2557.7,2557.4,0.89755589]
[1729751994920,3.53795757,2557.7,2557.4,2.74897969]
[1729751995120,0.01915757,2557.7,2557.4,2.74897969]
[1729751995326,0.00915757,2557.7,2557.5,1.28156565]
[1729751995528,0.8181,2557.9,2557.4,1.46741404]
[1729751995529,3.5184,2558.0,2557.6,1.36346171]
[1729751995828,0.00915757,2557.9,2557.6,1.36346171]
[1729751997425,7.03685,2558.0,2557.6,1.36346171]
[1729751997926,0.00915757,2557.9,2557.6,1.36346171]
[1729751998820,0.82565757,2558.1,2557.7,1.28156565]
[1729751999015,0.8165,2558.1,2557.8,1.28156565]
[1729751999217,0.82565757,2558.1,2557.8,1.28156565]
[1729751999423,0.82565757,2558.1,2557.9,0.28935036]
[1729751999844,0.01915757,2558.1,2557.9,0.28935036]
[1729752000136,4.34362757,2558.3,2557.9,1.57091601]
[1729752000701,0.82565757,2558.3,2557.9,1.57091601]
[1729752001316,0.82565757,2558.3,2557.9,0.28935036]
[1729752001518,3.51811,2558.2,2557.9,0.28935036]
[1729752002914,0.82565757,2558.3,2557.9,1.57091601]
[1729752003137,3.51812,2558.2,2558.0,0.5089546]
[1729752003345,3.51812,2558.2,2558.1,0.08143126]
[1729752003503,3.51812,2558.2,2557.7,2.07516565]
[1729752003699,0.01,2558.0,2557.8,0.08149352]
[1729752004437,0.01,2558.0,2557.8,1.36305917]
[1729752004603,3.51812,2558.2,2557.9,0.21566592]
[1729752004604,0.01,2558.2,2557.9,0.21566592]
[1729752004804,0.81565757,2558.3,2557.9,0.21566592]
[1729752005114,4.33364757,2558.3,2558.0,0.07824381]
[1729752005309,3.5181,2558.2,2558.0,0.07824381]
[1729752005641,3.51823,2558.1,2558.0,0.07824381]
[1729752006008,3.51823,2558.1,2557.7,0.7936]
[1729752006343,3.51823,2558.1,2557.7,2.63456521]
[1729752006542,3.51823,2558.1,2557.8,0.07828532]
[1729752008223,7.04629,2558.2,2557.8,0.07828532]
[1729752008423,3.5281,2558.2,2557.8,0.07828532]
[1729752008622,3.5281,2558.2,2557.8,1.35985097]
[1729752008623,0.01,2558.0,2557.8,1.35985097]
[1729752008824,0.01,2558.0,2557.9,0.62315505]
[1729752009050,3.5281,2558.2,2557.9,0.62315505]
[1729752009253,0.01,2558.2,2557.9,1.98298527]
[1729752009575,0.81565757,2558.3,2558.0,4.79992565]
[1729752009709,0.00915757,2558.3,2558.0,9.12348565]
[1729752009909,0.00915757,2558.3,2558.1,0.98249053]
[1729752010146,0.00915757,2558.3,2558.1,1.05812503]
[1729752011748,0.00915757,2558.3,2558.1,0.0756345]
[1729752011915,0.00915757,2558.3,2557.9,4.14162505]
[1729752012117,0.00915757,2558.3,2558.0,0.07565526]
[1729752015854,0.00915757,2558.3,2558.0,1.35722091]
[1729752016033,0.00915757,2558.3,2558.0,0.07565526]
[1729752016215,0.00915757,2558.3,2558.0,1.05791286]
[1729752019927,0.00915757,2558.3,2558.0,4.57626286]
[1729752020132,0.00915757,2558.3,2558.0,1.05791286]
[1729752023402,3.52712757,2558.3,2558.0,1.05791286]
[1729752029767,7.04515757,2558.3,2558.0,1.05791286]
[1729752029969,7.04515757,2558.3,2558.0,0.07565526]
[1729752030190,3.52712757,2558.3,2557.9,0.55]
[1729752030493,3.52712757,2558.3,2558.1,0.06751568]
[1729752030669,3.52712757,2558.3,2558.0,0.06753643]
[1729752030864,3.52712757,2558.3,2558.2,0.06749493]
[1729752031070,3.52712757,2558.3,2558.1,0.06751568]
[1729752031381,3.52712757,2558.3,2558.2,0.06749493]
[1729752031578,3.52712757,2558.3,2557.9,0.55]
[1729752031899,0.7823,2558.2,2558.0,0.14906557]
[1729752032391,3.5183,2558.1,2557.8,0.8052]
[1729752034859,3.52837,2558.0,2557.6,0.765]
[1729752035169,4.29088,2557.9,2557.5,4.28156565]
[1729752035371,4.29088,2557.9,2557.6,1.20847657]
[1729752035978,0.7723,2557.9,2557.6,2.49004222]
[1729752036185,0.7723,2557.9,2557.6,6.00895222]
[1729752036403,0.01,2558.0,2557.6,6.00895222]
[1729752036607,0.01,2558.0,2557.7,0.90089522]
[1729752036806,0.01,2558.0,2557.7,2.18246087]
[1729752037141,0.01,2558.0,2557.7,0.90089522]
[1729752037708,3.52838,2558.0,2557.7,0.90089522]
[1729752037912,3.52838,2558.0,2557.5,4.28156565]
[1729752038099,3.52838,2558.0,2557.6,1.28156565]
[1729752038409,0.01,2558.0,2557.7,1.28156565]
[1729752039114,0.01,2558.0,2557.8,0.14922543]
[1729752039294,3.52837,2558.0,2557.8,0.14922543]
[1729752039499,3.52837,2558.0,2557.6,1.28156565]
[1729752039803,3.52837,2558.0,2557.7,0.78005957]
[1729752040009,3.52837,2558.0,2557.7,0.92445546]
[1729752041777,0.01,2558.0,2557.7,0.92445546]
[1729752042102,0.01,2558.0,2557.7,6.50339111]
[1729752042278,0.7723,2558.1,2557.8,1.28156565]
[1729752042474,0.7723,2558.1,2557.9,0.65033911]
[1729752042675,0.7723,2558.1,2557.9,0.79193764]
[1729752042915,0.7723,2558.1,2557.9,0.14159853]
[1729752044133,4.29053,2558.1,2557.9,0.14159853]
[1729752044355,4.29053,2558.1,2557.7,0.78005957]
[1729752044829,4.29053,2558.1,2557.8,0.14157769]
[1729752045595,0.01,2557.9,2557.8,0.14157769]
[1729752047337,0.01,2557.9,2557.8,0.71378798]
[1729752057235,0.01,2557.9,2557.8,1.99535363]
[1729752057435,0.01,2557.9,2557.8,0.71378798]
[1729752061421,0.7909,2557.9,2557.8,0.14157769]
[1729752061828,0.7909,2557.9,2557.7,3.51877]
[1729752062016,0.7909,2557.9,2557.8,0.13079379]
[1729752062448,0.01,2557.9,2557.7,3.51868]
[1729752062686,0.01,2557.9,2557.8,0.13080125]
[1729752063386,0.7909,2557.9,2557.8,0.13080125]
[1729752064161,0.7909,2557.9,2557.6,4.80041565]
[1729752064379,0.7909,2557.9,2557.7,0.13082519]
[1729752064763,4.30869757,2557.8,2557.7,0.13082519]
[1729752064947,5.59026322,2557.8,2557.7,0.13082519]
[1729752065293,0.7809,2557.4,2557.1,3.51947]
[1729752065643,0.7809,2557.4,2557.1,4.80103565]
[1729752067197,0.7809,2557.4,2557.2,4.80103565]
[1729752067484,0.01,2557.5,2557.2,4.80103565]
[1729752068286,0.01,2557.5,2557.3,2.03326565]
[1729752069067,0.01,2557.5,2557.4,0.12256086]
[1729752069793,0.00915757,2557.6,2557.4,1.40412651]
[1729752070388,0.00915757,2557.6,2557.4,4.92331651]
[1729752070786,0.00915757,2557.6,2557.4,1.04198751]
[1729752071696,0.00915757,2557.6,2557.4,2.32355316]
[1729752071871,0.00915757,2557.6,2557.4,5.84271316]
[1729752072603,0.00915757,2557.6,2557.4,2.32355316]
[1729752074106,0.00915757,2557.6,2557.4,1.04198751]
[1729752074310,0.00915757,2557.6,2557.4,0.12256086]
[1729752077472,0.00915757,2557.6,2557.2,4.80102565]
[1729752077672,3.52807757,2557.6,2557.5,0.11872813]
[1729752077874,3.52807757,2557.6,2557.1,4.80109565]
[1729752078394,3.52807757,2557.6,2557.2,1.28156565]
[1729752078586,3.52807757,2557.6,2557.2,1.40032087]
[1729752079272,3.52807757,2557.6,2557.3,1.28156565]
[1729752079473,3.52807757,2557.6,2557.2,1.40032087]
[1729752079708,3.52807757,2557.6,2557.4,0.11476706]
[1729752079914,3.52807757,2557.6,2557.3,0.11479101]
[1729752080077,3.52807757,2557.6,2557.5,0.1147431]
[1729752080426,3.52807757,2557.6,2557.5,0.11140977]
[1729752080567,3.52807757,2557.6,2557.2,1.28156565]
[1729752080767,3.52807757,2557.6,2557.3,0.11145767]
[1729752080990,3.52807757,2557.6,2557.2,1.28156565]
[1729752081195,3.52807757,2557.6,2557.3,0.11145767]
[1729752081434,3.52807757,2557.6,2557.2,1.28156565]
[1729752081725,3.52807757,2557.6,2557.4,0.11143372]
[1729752081928,0.817,2557.4,2557.3,0.11145767]
[1729752082147,0.817,2557.4,2556.9,7.0396]
[1729752082148,0.817,2557.4,2557.0,1.28156565]
[1729752082427,3.52935,2557.3,2556.9,4.28156565]
[1729752082930,3.52935,2557.3,2557.0,1.28156565]
[1729752083130,0.01,2557.3,2557.0,1.28156565]
[1729752084034,0.01,2557.3,2557.1,0.11150559]
[1729752085530,0.01,2557.3,2557.0,1.28156565]
[1729752085697,0.01,2557.3,2557.2,0.10791531]
[1729752085899,0.01,2557.3,2557.1,0.10793927]
[1729752086118,0.01,2557.3,2557.2,0.10791531]
[1729752086436,0.01,2557.3,2557.0,1.28156565]
[1729752086598,0.01,2557.3,2557.2,0.1080347]
[1729752086932,0.01,2557.3,2557.1,0.10805866]
[1729752087133,0.01,2557.3,2557.0,1.28156565]
[1729752087134,0.01,2557.3,2557.2,0.1080347]
[1729752087634,0.01,2557.3,2557.2,0.10805709]
[1729752087808,0.01,2557.3,2557.0,1.28156565]
[1729752088008,0.01,2557.3,2557.1,0.10808105]
[1729752092635,0.00915757,2557.2,2557.1,0.10808105]
[1729752092845,0.00915757,2557.2,2556.7,7.84262]
[1729752092846,0.57286389,2557.2,2556.8,4.80151565]
[1729752093002,0.00915757,2557.2,2557.1,0.10456251]
[1729752093335,0.00915757,2557.2,2556.8,4.80151565]
[1729752093543,0.00915757,2557.2,2557.1,0.10456251]
[1729752094405,0.00915757,2557.2,2556.9,1.28156565]
[1729752094818,0.00915757,2557.2,2557.0,1.38620436]
[1729752095343,0.00915757,2557.2,2557.1,1.28156565]
[1729752095637,0.00915757,2557.2,2557.0,1.38620436]
[1729752095846,0.00915757,2557.2,2557.1,0.10462222]
[1729752096056,3.52934,2557.3,2557.1,0.10462222]
[1729752096233,0.00915757,2557.2,2557.1,0.10462222]
[1729752096398,0.00915757,2557.2,2556.9,1.28156565]
[1729752096604,4.34562757,2557.2,2557.0,0.10478798]
[1729752096840,0.01,2557.1,2556.8,1.28156565]
[1729752097339,0.01,2557.1,2556.9,0.10481194]
[1729752099243,3.52962,2557.1,2557.0,0.10481037]
[1729752099535,3.52962,2557.1,2556.7,1.28156565]
[1729752099705,3.52962,2557.1,2557.0,0.10481037]
[1729752099905,0.01,2557.1,2556.7,1.28156565]
[1729752100131,0.01,2557.1,2557.0,0.10481037]
[1729752100297,0.01,2557.1,2556.7,1.28156565]
[1729752100501,0.01,2557.1,2557.0,0.10481037]
[1729752100736,0.01,2557.1,2556.7,1.28156565]
[1729752100941,0.01,2557.1,2557.0,0.10481037]
[1729752101798,0.01,2557.1,2556.7,4.80171565]
[1729752102027,0.01,2557.1,2556.8,0.96527986]
[1729752104252,0.01,2557.1,2556.8,2.24684551]
[1729752105855,0.01,2557.1,2556.8,0.96527986]
[1729752108343,0.01,2557.1,2556.8,2.24684551]
[1729752110961,0.01,2557.1,2556.8,0.96527986]
[1729752111820,0.01,2557.1,2556.8,2.24684551]
[1729752113456,0.01,2557.1,2556.8,0.96527986]
[1729752114626,0.01,2557.1,2556.9,0.44854299]
[1729752114952,0.01,2557.1,2557.0,0.09812183]
[1729752115362,0.01,2557.1,2556.8,1.28156565]
[1729752115564,0.01,2557.1,2557.0,0.09574108]
[1729752115724,0.01,2557.1,2556.9,0.09576504]
[1729752115928,0.01,2557.1,2557.0,0.09574108]
[1729752116372,0.01,2557.1,2556.8,1.28156565]
[1729752116548,0.01,2557.1,2557.0,0.09574108]
[1729752116760,0.01,2557.1,2556.7,1.28156565]
[1729752117235,0.00915757,2556.2,2556.0,0.8126]
[1729752117557,0.00915757,2556.2,2555.8,3.52134]
[1729752117558,0.00915757,2556.2,2555.8,5.61548565]
[1729752117770,0.00915757,2556.2,2555.8,5.96761965]
[1729752117925,0.00915757,2556.2,2555.9,1.28156565]
[1729752118128,0.00915757,2556.2,2555.8,2.44629965]
[1729752118676,3.53079,2556.3,2555.8,2.44629965]
[1729752118853,3.53000757,2556.2,2555.8,1.63369965]
[1729752119051,0.00915757,2556.2,2555.8,1.63369965]
[1729752119259,0.00915757,2556.2,2555.9,1.28156565]
[1729752120046,0.00915757,2556.2,2556.0,1.28156565]
[1729752120283,0.01,2556.3,2556.1,1.28156565]
[1729752120478,0.00915757,2556.4,2556.2,1.28156565]
[1729752120781,0.00915757,2556.4,2556.3,1.28156565]
[1729752122578,0.00915757,2556.4,2556.3,1.36398386]
[1729752122949,0.00915757,2556.4,2556.3,2.09416565]
[1729752123145,4.33441,2556.6,2556.3,2.09416565]
[1729752123146,0.00915757,2556.6,2556.3,2.60637305]
[1729752123372,0.00915757,2556.6,2556.4,1.28156565]
[1729752123680,0.00915757,2556.6,2556.4,1.36395988]
[1729752125156,3.5201,2556.8,2556.5,1.28156565]
[1729752125157,3.52925757,2556.8,2556.5,1.28156565]
[1729752125482,3.52925757,2556.8,2556.5,1.36442869]
[1729752126777,3.52925757,2556.8,2556.5,0.08286304]
[1729752127888,3.52925757,2556.8,2556.5,1.36442869]
[1729752128193,0.00915757,2556.8,2556.5,1.6333523]
[1729752128661,3.52917757,2556.8,2556.5,1.6333523]
[1729752132201,7.04929757,2556.8,2556.5,1.36442869]
[1729752132371,3.52917757,2556.8,2556.5,1.36442869]
[1729752132572,7.04929757,2556.8,2556.5,1.36442869]
[1729752132779,3.52917757,2556.8,2556.5,1.36442869]
[1729752133101,7.04928757,2556.8,2556.5,0.08286304]
[1729752133612,0.01,2556.7,2556.5,0.08286304]
[1729752133912,4.337,2556.6,2556.2,1.28156565]
[1729752134114,4.337,2556.6,2556.2,1.84452122]
[1729752134710,4.337,2556.6,2556.3,1.28156565]
[1729752135287,4.337,2556.6,2556.2,1.84452122]
[1729752138795,4.337,2556.6,2556.2,0.56295557]
[1729752139317,0.8267,2556.3,2555.9,2.62398561]
[1729752139521,4.34744,2556.3,2555.9,1.28156565]
[1729752139682,7.86827,2556.3,2555.9,1.28156565]
[1729752140019,4.34744,2556.3,2555.9,1.28156565]
[1729752140811,4.34744,2556.3,2555.8,1.28156565]
[1729752140984,3.52086,2556.2,2555.9,1.28156565]
[1729752143611,4.34744,2556.3,2556.0,1.28156565]
[1729752144129,4.34744,2556.3,2556.1,0.08333965]
[1729752148198,7.86822,2556.3,2556.1,0.08333965]
[1729752148398,5.13517776,2556.3,2556.1,0.08333965]
[1729752148606,5.13517776,2556.3,2555.9,1.28156565]
[1729752148808,4.34744,2556.3,2556.2,0.0837414]
[1729752149033,4.34744,2556.3,2555.9,1.28156565]
[1729752149227,4.34744,2556.3,2556.2,0.0837414]
[1729752149408,4.34744,2556.3,2555.9,1.28156565]
[1729752149609,4.34744,2556.3,2556.2,0.0837414]
[1729752149850,4.34744,2556.3,2555.9,1.28156565]
[1729752150046,4.34744,2556.3,2556.2,0.0837414]
[1729752150241,4.34744,2556.3,2555.7,4.34835]
[1729752150401,4.34744,2556.3,2555.9,1.28156565]
[1729752150807,4.34744,2556.3,2556.0,0.08381177]
[1729752151841,4.34744,2556.3,2556.0,1.36537742]
[1729752152622,0.8267,2556.3,2556.0,1.36537742]
[1729752155447,0.8267,2556.3,2556.0,0.08381177]
[1729752157558,0.8267,2556.3,2556.0,1.36537742]
[1729752159064,0.8267,2556.3,2556.0,0.08381177]
[1729752160058,0.8267,2556.3,2556.0,1.36537742]
[1729752167235,4.34743,2556.3,2556.0,0.08381177]
[1729752168487,5.59040322,2556.1,2556.0,0.08381177]
[1729752168891,5.59040322,2556.1,2555.4,3.52195]
[1729752168892,3.52121,2556.0,2555.4,3.52195]
[1729752169183,0.00915757,2555.8,2555.4,4.80351565]
[1729752170291,0.00915757,2555.8,2555.5,1.28156565]
[1729752170448,0.00915757,2555.8,2555.4,1.28156565]
[1729752170781,0.77785757,2555.8,2555.4,1.28156565]
[1729752171652,4.29926757,2555.8,2555.4,1.28156565]
[1729752172184,3.53155,2555.7,2555.3,1.28156565]
[1729752174074,0.01,2555.7,2555.4,1.28156565]
[1729752174272,0.01,2555.7,2555.4,1.36507624]
[1729752174946,3.53154,2555.7,2555.4,1.36507624]
[1729752175148,3.53154,2555.7,2555.4,0.08351059]
[1729752178788,0.01,2555.5,2555.4,0.08351059]
[1729752178956,0.01,2555.5,2555.3,1.28156565]
[1729752179296,0.01,2555.5,2555.4,0.08388414]
[1729752181685,0.01,2555.5,2555.3,1.28156565]
[1729752181854,0.01,2555.5,2555.4,0.08426517]
[1729752182189,0.01,2555.5,2555.2,1.28156565]
[1729752182425,0.01,2555.5,2555.4,0.08426517]
[1729752182426,3.54097757,2555.5,2555.4,0.08426517]
[1729752182605,3.54097757,2555.5,2555.0,1.28156565]
[1729752182752,3.54097757,2555.5,2555.4,0.08434737]
[1729752183072,0.01,2555.3,2554.9,0.8283]
[1729752183279,3.54133757,2555.3,2554.9,1.28156565]
[1729752184479,3.54133757,2555.3,2555.0,1.28156565]
[1729752184859,3.54133757,2555.3,2554.8,3.52265]
[1729752185058,3.54133757,2555.3,2555.0,1.28156565]
[1729752185488,0.01915757,2555.3,2555.0,1.28156565]
[1729752187794,3.54128757,2555.3,2555.0,1.28156565]
[1729752187972,3.54128757,2555.3,2554.9,1.28156565]
[1729752189299,3.54128757,2555.3,2555.0,1.36326453]
[1729752189499,3.54128757,2555.3,2555.0,0.08169888]
[1729752189678,3.54128757,2555.3,2555.0,1.36326453]
[1729752189872,3.54128757,2555.3,2554.9,1.28156565]
[1729752190071,3.54128757,2555.3,2555.1,0.08167488]
[1729752190270,3.54128757,2555.3,2555.0,0.08169888]
[1729752190470,3.54124757,2555.3,2555.2,0.08165089]
[1729752190677,3.52222,2555.2,2555.1,0.08167488]
[1729752190864,3.52222,2555.2,2555.0,1.28156565]
[1729752191077,0.01915757,2555.3,2555.0,1.28156565]
[1729752191275,3.54131757,2555.3,2555.0,1.28156565]
[1729752191460,0.01915757,2555.3,2555.1,1.28156565]
[1729752192276,0.01915757,2555.3,2555.0,1.28156565]
[1729752193286,0.01915757,2555.3,2555.1,1.28156565]
[1729752194005,0.01915757,2555.3,2555.0,1.28156565]
[1729752194871,0.00915757,2555.3,2555.2,1.28156565]
[1729752196300,0.00915757,2555.3,2555.1,2.08126565]
[1729752196605,0.00915757,2555.3,2555.1,1.28156565]
[1729752196970,0.01915757,2555.3,2555.1,1.28156565]
[1729752198609,4.34995757,2555.3,2554.9,0.7997]
[1729752198774,4.34995757,2555.3,2555.0,1.28156565]
[1729752199511,4.34995757,2555.3,2554.8,3.52269]
[1729752199711,4.34995757,2555.3,2555.0,1.28156565]
[1729752201027,4.34995757,2555.3,2555.1,1.28156565]
[1729752201245,0.82775757,2555.3,2555.1,1.28156565]
[1729752201534,0.82775757,2555.3,2555.2,1.28156565]
[1729752201693,0.82775757,2555.3,2555.1,1.28156565]
[1729752204098,0.82775757,2555.3,2555.2,0.08206943]
[1729752207331,0.82775757,2555.3,2555.0,1.28156565]
[1729752207536,0.82775757,2555.3,2555.2,0.08206943]
[1729752207698,0.82775757,2555.3,2555.1,0.08209343]
[1729752208010,0.82775757,2555.3,2555.1,1.36365908]
[1729752209903,0.82775757,2555.3,2555.1,0.08209343]
[1729752212602,0.82775757,2555.3,2555.0,1.28156565]
[1729752212801,0.82775757,2555.3,2555.2,0.08200963]
[1729752213039,0.82775757,2555.3,2555.0,1.28156565]
[1729752213250,0.82775757,2555.3,2555.2,0.08200963]
[1729752213431,0.82775757,2555.3,2555.1,0.08203363]
[1729752213608,0.82775757,2555.3,2555.0,1.28156565]
[1729752213806,0.82775757,2555.3,2555.2,0.08200963]
[1729752214105,0.82775757,2555.3,2555.0,1.28156565]
[1729752214305,0.82775757,2555.3,2555.2,0.08200963]
[1729752214527,0.82775757,2555.3,2555.1,0.08203363]
[1729752214744,0.82775757,2555.3,2555.2,0.08200963]
[1729752215107,0.82775757,2555.3,2555.0,1.28156565]
[1729752215307,0.82775757,2555.3,2555.2,0.08201711]
[1729752215509,0.82775757,2555.3,2555.1,0.0820411]
[1729752215721,0.82775757,2555.3,2555.2,0.08201711]
[1729752215936,0.82775757,2555.3,2555.0,1.28156565]
[1729752216305,0.82775757,2555.3,2555.1,0.08203363]
[1729752226552,0.82775757,2555.3,2555.1,1.36359928]
[1729752226845,0.82775757,2555.3,2555.1,0.08203363]
[1729752227037,0.82775757,2555.3,2555.1,1.36359928]
[1729752227351,0.82775757,2555.3,2555.1,0.08203363]
[1729752228153,0.01915757,2555.3,2555.1,0.08203363]
[1729752229146,0.01915757,2555.3,2555.1,1.36359928]
[1729752230220,0.01915757,2555.3,2554.2,3.52358]
[1729752230221,0.00915757,2554.7,2554.4,0.7645]
[1729752230513,0.7929,2554.9,2554.6,4.80460565]
[1729752230750,0.01,2554.9,2554.6,2.19078322]
[1729752230926,0.00915757,2554.8,2554.6,0.90921757]
[1729752231271,0.00915757,2554.8,2554.6,1.28156565]
[1729752234956,0.00915757,2554.8,2554.7,1.28156565]